bitfinex/quotes_SOLUSD_20240916
["timestamp","ask_amount","ask_price","bid_price","bid_amount"]
[1726525939124,23.776884,131.26,131.23,7.62]
[1726525940242,31.395284,131.26,131.22,7.6205]
[1726525940448,7.6191,131.25,131.21,7.6211]
[1726525940622,33.8949,131.25,131.21,7.6211]
[1726525942025,33.8949,131.25,131.2,7.6217]
[1726525943063,31.396484,131.24,131.2,7.6217]
[1726525944557,7.6203,131.23,131.19,7.6223]
[1726525944723,16.0216,131.22,131.19,7.6223]
[1726525944928,23.776884,131.21,131.18,0.2545957]
[1726525945653,31.399384,131.19,131.18,0.2545957]
[1726525946147,51.399384,131.19,131.18,0.2545957]
[1726525946338,67.773284,131.19,131.18,0.2545957]
[1726525958139,67.773284,131.19,131.14,0.2545957]
[1726525958140,20.0,131.18,131.14,0.2545957]
[1726525958360,51.401684,131.15,131.14,0.2545957]
[1726525958856,7.6264,131.13,131.1,0.2545957]
[1726525959267,31.403484,131.12,131.1,0.2545957]
[1726525960150,7.6271,131.11,131.1,0.2545957]
[1726525960539,51.403984,131.11,131.1,0.2545957]
[1726525962730,67.206084,131.11,131.1,0.2545957]
[1726525973361,20.0,131.11,131.1,0.2545957]
[1726525974953,43.776884,131.11,131.1,0.2545957]
[1726525980787,23.776884,131.11,131.1,0.2545957]
[1726525981081,43.776884,131.11,131.1,0.2545957]
[1726525981379,20.0,131.11,131.1,0.2545957]
[1726525981559,20.0,131.11,131.1,7.8822957]
[1726525983686,20.0,131.11,131.1,0.2545957]
[1726525990095,20.0,131.11,131.1,7.8822957]
[1726525990377,23.776884,131.13,131.11,7.627]
[1726525990685,20.0,131.12,131.11,7.627]
[1726525991762,20.0,131.12,131.1,7.8821957]
[1726525991957,20.0,131.13,131.1,7.8821957]
[1726525992359,23.776884,131.12,131.1,0.2545957]
[1726526008967,20.0,131.13,131.1,7.8822957]
[1726526009488,9.97652917,131.17,131.1,15.87053524]
[1726526009696,7.6232,131.18,131.11,15.61593954]
[1726526009865,15.5907,131.19,131.12,15.61593954]
[1726526010495,7.6219,131.2,131.16,7.6238]
[1726526010872,7.6219,131.2,131.15,7.6248]
[1726526011501,17.59802917,131.21,131.16,7.6242]
[1726526011989,20.0,131.2,131.16,7.6242]
[1726526013581,20.0,131.2,131.15,7.6247]
[1726526014094,20.0,131.18,131.15,7.6247]
[1726526021597,23.776884,131.17,131.13,7.6255]
[1726526024100,31.400584,131.17,131.13,7.6255]
[1726526025399,23.776884,131.17,131.14,7.6252]
[1726526041814,23.776884,131.17,131.11,15.61593954]
[1726526042124,35.8358,131.18,131.15,7.6246]
[1726526043332,15.8358,131.18,131.15,7.6246]
[1726526047521,23.459,131.18,131.13,7.6259]
[1726526047697,23.459,131.18,131.14,7.6251]
[1726526048096,15.8358,131.18,131.14,7.6251]
[1726526050528,15.8358,131.18,131.15,7.6247]
[1726526055014,15.8358,131.18,131.1,6.8627957]
[1726526055015,20.0,131.16,131.1,6.8627957]
[1726526055510,20.0,131.16,131.1,22.47873524]
[1726526055711,20.0,131.16,131.11,8.85132803]
[1726526056013,20.0,131.16,131.13,7.6257]
[1726526056641,23.776884,131.15,131.12,7.6264]
[1726526057427,23.776884,131.15,131.1,0.2545957]
[1726526058313,23.776884,131.15,131.12,7.6265]
[1726526060714,23.776884,131.15,131.1,0.2545957]
[1726526060916,23.776884,131.15,131.11,7.6271]
[1726526061824,31.401684,131.15,131.11,7.6271]
[1726526074035,31.401684,131.15,131.12,7.6264]
[1726526074036,23.776884,131.15,131.12,7.6264]
[1726526077144,43.776884,131.13,131.1,0.2545957]
[1726526077316,7.627,131.12,131.1,0.2545957]
[1726526077521,51.403984,131.11,131.1,0.2545957]
[1726526078423,66.989884,131.11,131.1,0.2545957]
[1726526090336,20.0,131.11,131.1,0.2545957]
[1726526102544,27.6271,131.11,131.1,0.2545957]
[1726526102941,51.403984,131.11,131.1,0.2545957]
[1726526104077,43.776884,131.08,131.06,0.2545957]
[1726526104252,23.776884,131.08,131.06,0.2545957]
[1726526105363,43.776884,131.07,131.06,0.2545957]
[1726526106276,51.406384,131.07,131.06,0.2545957]
[1726526107079,20.0,131.07,131.06,0.2545957]
[1726526107463,7.6279,131.1,131.06,0.2545957]
[1726526107670,43.776884,131.09,131.06,0.2545957]
[1726526108279,43.776884,131.09,131.06,7.8844957]
[1726526113883,20.0,131.1,131.06,7.8844957]
[1726526114174,20.0,131.1,131.07,7.6294]
[1726526115362,31.403584,131.12,131.08,7.6288]
[1726526116957,20.0,131.11,131.08,7.6288]
[1726526122973,20.0,131.11,131.09,7.6283]
[1726526123179,20.0,131.12,131.09,7.6283]
[1726526131471,27.6273,131.11,131.07,7.6293]
[1726526131674,20.0,131.11,131.07,7.6293]
[1726526133586,27.6272,131.11,131.07,7.6293]
[1726526133807,23.776884,131.1,131.07,7.6293]
[1726526133965,7.629,131.08,131.06,0.2545957]
[1726526134277,23.776884,131.07,131.06,0.2545957]
[1726526134778,43.776884,131.07,131.06,0.2545957]
[1726526138602,51.406384,131.07,131.06,0.2545957]
[1726526161808,20.0,131.07,131.06,0.2545957]
[1726526162007,7.628,131.1,131.06,7.8841957]
[1726526163000,7.6283,131.09,131.06,0.2545957]
[1726526163628,7.6278,131.1,131.06,7.8844957]
[1726526164005,23.776884,131.09,131.06,7.8844957]
[1726526167226,31.405284,131.09,131.06,0.2545957]
[1726526169101,7.6289,131.08,131.06,0.2545957]
[1726526171025,31.405384,131.09,131.06,0.2545957]
[1726526174139,23.776884,131.09,131.06,7.8844957]
[1726526174430,15.4274,131.13,131.06,0.2545957]
[1726526174616,7.6261,131.13,131.09,7.6279]
[1726526175911,23.776884,131.12,131.09,7.6279]
[1726526177715,7.6261,131.13,131.09,7.6279]
[1726526178018,20.0,131.12,131.09,7.6279]
[1726526180540,20.0,131.15,131.11,7.6266]
[1726526180713,20.0,131.15,131.12,7.6264]
[1726526182034,23.776884,131.14,131.11,7.627]
[1726526183518,31.402384,131.14,131.1,7.6277]
[1726526184240,23.776884,131.12,131.09,7.6281]
[1726526186436,23.776884,131.14,131.11,7.6271]
[1726526187326,20.0,131.15,131.13,7.626]
[1726526187551,20.0,131.17,131.14,7.6252]
[1726526194539,20.0,131.17,131.13,30.31566403]
[1726526194749,15.8629957,131.2,131.14,14.12696403]
[1726526195049,0.2545957,131.2,131.14,15.65201918]
[1726526195230,0.2545957,131.2,131.14,14.12696403]
[1726526195434,0.2545957,131.2,131.17,7.6231]
[1726526199556,0.2545957,131.2,131.18,7.6231]
[1726526200438,20.2545957,131.2,131.18,7.6231]
[1726526202861,20.2545957,131.2,131.16,14.12696403]
[1726526202862,20.2545957,131.2,131.13,36.91156403]
[1726526203255,27.8765957,131.2,131.16,7.6242]
[1726526206947,23.776884,131.19,131.14,7.6254]
[1726526207176,31.399484,131.19,131.13,22.7846]
[1726526208051,31.399484,131.19,131.14,7.625]
[1726526209974,31.399484,131.19,131.15,7.6246]
[1726526210269,20.2545957,131.2,131.16,7.6241]
[1726526211156,20.2545957,131.2,131.17,7.6236]
[1726526215557,20.2545957,131.2,131.18,7.6226]
[1726526220076,0.2545957,131.2,131.19,7.6225]
[1726526228887,0.2545957,131.2,131.19,21.74946403]
[1726526229879,0.2545957,131.2,131.19,7.6225]
[1726526238185,0.2545957,131.2,131.17,7.6235]
[1726526249880,23.776884,131.19,131.17,7.6235]
[1726526250199,0.2545957,131.2,131.17,7.6235]
[1726526250402,23.776884,131.19,131.17,7.6235]
[1726526250703,23.776884,131.19,131.16,7.6242]
[1726526252198,23.776884,131.19,131.12,14.12696403]
[1726526252199,23.776884,131.19,131.15,7.6246]
[1726526252398,31.399484,131.19,131.15,7.6246]
[1726526252603,23.776884,131.17,131.15,7.6246]
[1726526254197,23.776884,131.15,131.11,7.6267]
[1726526254500,31.401784,131.15,131.11,7.6267]
[1726526255474,31.401784,131.15,131.07,15.8681]
[1726526255698,31.401784,131.15,131.1,7.6275]
[1726526256500,15.6893,131.13,131.08,7.6289]
[1726526256680,43.776884,131.12,131.07,7.6293]
[1726526258533,20.0,131.1,131.07,7.6293]
[1726526260298,20.0,131.11,131.07,7.6293]
[1726526261106,20.0,131.11,131.08,7.6289]
[1726526266483,20.0,131.11,131.07,7.6293]
[1726526267206,23.776884,131.1,131.06,0.2545957]
[1726526267388,23.776884,131.1,131.07,7.6294]
[1726526269006,20.0,131.11,131.08,7.6288]
[1726526270895,20.0,131.07,131.06,0.2545957]
[1726526271305,27.6295,131.07,131.06,0.2545957]
[1726526271919,20.0,131.07,131.06,0.2545957]
[1726526286623,51.406384,131.07,131.06,0.2545957]
[1726526289122,27.6295,131.07,131.06,0.2545957]
[1726526290222,3.13950875,131.12,131.06,0.2545957]
[1726526290223,15.4432,131.13,131.06,0.2545957]
[1726526290422,15.4432,131.13,131.07,7.6289]
[1726526290798,7.6277,131.1,131.06,7.8842957]
[1726526291529,7.6273,131.11,131.06,7.8842957]
[1726526292020,20.0,131.1,131.07,7.6293]
[1726526296329,7.6273,131.11,131.07,7.6293]
[1726526296330,23.0693,131.13,131.09,7.6279]
[1726526297902,20.0,131.12,131.09,7.6279]
[1726526300126,20.0,131.13,131.1,7.6277]
[1726526300446,20.0,131.13,131.1,7.6275]
[1726526307447,20.0,131.13,131.09,7.6281]
[1726526307650,31.402484,131.14,131.1,7.6277]
[1726526308046,20.0,131.13,131.1,7.6277]
[1726526309261,20.0,131.13,131.11,7.6271]
[1726526313860,20.0,131.15,131.12,7.6265]
[1726526314155,43.776884,131.15,131.12,7.6265]
[1726526315168,43.776884,131.15,131.09,14.12696403]
[1726526315364,7.6237,131.17,131.1,14.12696403]
[1726526316364,7.6237,131.17,131.13,7.6259]
[1726526317058,23.776884,131.16,131.12,7.6265]
[1726526318162,31.401184,131.16,131.12,7.6265]
[1726526322877,7.6252,131.15,131.07,16.5355]
[1726526323044,31.401284,131.16,131.11,7.6267]
[1726526323662,31.401284,131.16,131.12,7.6265]
[1726526341478,31.401284,131.16,131.07,16.5355]
[1726526341479,23.776884,131.14,131.11,7.6269]
[1726526341681,31.402384,131.14,131.08,12.71328855]
[1726526341980,23.776884,131.12,131.06,0.2545957]
[1726526342171,23.776884,131.1,131.06,0.2545957]
[1726526342500,27.6288,131.09,131.06,0.2545957]
[1726526342669,31.405984,131.08,131.06,0.2545957]
[1726526343253,20.0,131.07,131.06,0.2545957]
[1726526343456,43.776884,131.07,131.06,0.2545957]
[1726526344778,51.406384,131.07,131.06,0.2545957]
[1726526345184,43.776884,131.07,131.06,0.2545957]
[1726526347858,43.776884,131.07,131.03,7.6318]
[1726526347859,23.776884,131.06,131.03,6.8863957]
[1726526351686,23.776884,131.06,131.02,0.2545957]
[1726526351687,23.776884,131.06,131.04,7.631]
[1726526352060,39.226984,131.06,131.04,7.631]
[1726526352397,39.226984,131.06,131.03,7.6316]
[1726526352982,39.226984,131.06,131.02,7.8867957]
[1726526354289,23.776884,131.04,131.02,0.2545957]
[1726526358506,20.0,131.05,131.02,7.8868957]
[1726526358707,20.0,131.08,131.04,7.6307]
[1726526358875,23.222,131.09,131.05,7.6304]
[1726526359383,15.5935,131.09,131.05,7.6304]
[1726526359601,15.5935,131.09,131.06,7.63]
[1726526360181,20.0,131.08,131.06,7.63]
[1726526363687,23.776884,131.07,131.04,7.6308]
[1726526363885,31.406384,131.07,131.03,7.6317]
[1726526366514,31.407684,131.05,131.02,0.2545957]
[1726526376711,23.776884,131.05,131.02,7.8869957]
[1726526387623,7.6296,131.07,131.02,7.8869957]
[1726526387624,15.5935,131.09,131.02,14.38155973]
[1726526387796,15.5935,131.09,131.03,14.12696403]
[1726526387998,15.5935,131.09,131.07,7.6294]
[1726526388428,23.2218,131.09,131.04,7.6307]
[1726526388609,0.9,131.14,131.04,14.12696403]
[1726526388610,16.0185,131.12,131.04,14.12696403]
[1726526388799,16.0185,131.12,131.08,7.6284]
[1726526389921,16.0185,131.12,131.08,37.6284]
[1726526390118,23.776884,131.11,131.08,37.6284]
[1726526391818,23.776884,131.11,131.02,9.81644405]
[1726526391819,23.776884,131.09,131.02,9.81644405]
[1726526392022,23.776884,131.09,131.04,30.0]
[1726526392217,23.776884,131.09,131.02,0.2545957]
[1726526393008,23.776884,131.07,131.03,7.6313]
[1726526397111,23.776884,131.07,131.04,7.631]
[1726526398411,23.776884,131.05,131.02,7.8863957]
[1726526398619,15.9005,131.06,131.03,7.6313]
[1726526398824,15.9005,131.06,131.04,7.6312]
[1726526399526,15.9005,131.06,131.03,7.6316]
[1726526400412,23.776884,131.05,131.03,7.6316]
[1726526400617,23.776884,131.05,131.02,7.8868957]
[1726526400819,23.776884,131.03,131.02,0.2545957]
[1726526401539,20.0,131.05,131.02,0.2545957]
[1726526401838,15.9005,131.1,131.03,14.12696403]
[1726526402146,15.9005,131.1,131.06,7.6299]
[1726526402318,15.9005,131.1,131.02,0.2545957]
[1726526402520,7.6284,131.09,131.04,7.631]
[1726526402935,20.0,131.08,131.04,7.631]
[1726526403335,23.776884,131.07,131.04,7.631]
[1726526403828,23.776884,131.07,131.02,0.2545957]
[1726526404141,20.0,131.08,131.02,0.2545957]
[1726526404316,20.0,131.09,131.02,14.38155973]
[1726526404642,20.0,131.09,131.02,0.2545957]
[1726526405041,27.6283,131.09,131.02,0.2545957]
[1726526405425,23.776884,131.08,131.02,0.2545957]
[1726526405737,23.776884,131.08,131.05,7.6305]
[1726526407645,23.776884,131.08,131.06,7.63]
[1726526408109,23.776884,131.08,131.02,0.2545957]
[1726526408315,23.776884,131.08,131.04,7.6312]
[1726526408532,31.405884,131.08,131.04,7.6312]
[1726526408734,23.776884,131.08,131.04,7.6312]
[1726526409041,23.776884,131.08,131.05,7.6302]
[1726526409541,20.0,131.09,131.03,14.12696403]
[1726526409730,6.1356,131.12,131.05,14.12696403]
[1726526409932,15.5117,131.13,131.06,15.65267905]
[1726526410128,21.7122,131.15,131.11,7.627]
[1726526410320,29.3371,131.15,131.11,7.627]
[1726526410522,21.7122,131.15,131.12,7.6265]
[1726526411451,15.5117,131.15,131.12,7.6265]
[1726526411945,20.0,131.14,131.12,7.6265]
[1726526414218,20.0,131.14,131.11,7.6271]
[1726526414546,23.776884,131.13,131.11,7.6271]
[1726526423456,23.776884,131.13,131.1,7.6273]
[1726526423629,23.776884,131.13,131.11,7.6271]
[1726526427335,23.776884,131.13,131.1,7.6276]
[1726526427540,23.776884,131.13,131.05,14.12696403]
[1726526427541,31.402984,131.13,131.09,7.6282]
[1726526429143,20.0,131.12,131.09,7.6282]
[1726526429352,23.776884,131.11,131.08,7.6287]
[1726526431452,23.776884,131.09,131.07,7.6293]
[1726526431644,23.776884,131.09,131.06,7.6299]
[1726526432061,23.776884,131.09,131.07,7.6292]
[1726526432434,15.9279,131.1,131.08,7.6288]
[1726526433056,20.0,131.12,131.1,7.6276]
[1726526433240,20.0,131.12,131.09,7.6281]
[1726526435341,23.776884,131.11,131.09,7.6281]
[1726526435544,23.776884,131.11,131.04,20.57796403]
[1726526437267,20.0,131.12,131.06,14.12696403]
[1726526437569,15.4160957,131.16,131.04,22.1998]
[1726526437771,15.4160957,131.16,131.08,14.12696403]
[1726526438445,15.4160957,131.16,131.13,7.6258]
[1726526438650,15.4160957,131.16,131.12,7.6264]
[1726526438869,43.776884,131.15,131.12,7.6264]
[1726526440150,15.4160957,131.16,131.1,14.12696403]
[1726526440362,15.4160957,131.16,131.14,7.6254]
[1726526444542,0.2545957,131.16,131.15,7.6248]
[1726526456977,0.2545957,131.16,131.15,21.75176403]
[1726526462592,0.2545957,131.16,131.15,7.6248]
[1726526464990,0.2545957,131.16,131.14,7.6252]
[1726526465192,0.2545957,131.16,131.1,15.1662]
[1726526465193,0.2545957,131.16,131.13,7.6258]
[1726526466588,0.2545957,131.16,131.14,7.6254]
[1726526473712,0.2545957,131.16,131.1,14.12696403]
[1726526473906,0.2545957,131.16,131.09,6.0516]
[1726526473907,23.776884,131.15,131.12,7.6261]
[1726526474091,23.776884,131.15,131.11,7.6269]
[1726526474296,31.401784,131.15,131.11,7.6269]
[1726526476820,23.776884,131.15,131.12,7.6265]
[1726526477482,23.776884,131.15,131.13,7.6259]
[1726526477687,24.0314797,131.16,131.13,7.6259]
[1726526477888,23.776884,131.14,131.12,7.6263]
[1726526488606,23.776884,131.15,131.12,7.6263]
[1726526491415,31.401784,131.15,131.11,7.6269]
[1726526493132,31.401884,131.15,131.11,7.627]
[1726526495434,23.776884,131.15,131.11,7.627]
[1726526496621,31.401884,131.15,131.11,7.627]
[1726526498425,27.6259,131.14,131.09,7.6281]
[1726526498607,23.776884,131.13,131.09,7.6281]
[1726526498813,31.402984,131.13,131.09,7.6281]
[1726526499231,23.776884,131.13,131.09,7.6281]
[1726526502830,23.776884,131.13,131.08,7.6287]
[1726526503032,59.1243,131.14,131.03,30.81016783]
[1726526503033,23.776884,131.09,131.06,7.6298]
[1726526503206,23.776884,131.09,131.02,14.38155973]
[1726526503207,31.405584,131.09,131.05,7.6305]
[1726526503411,53.989484,131.09,131.02,0.2545957]
[1726526503707,53.989484,131.09,131.05,7.6306]
[1726526504512,46.360784,131.09,131.05,7.6306]
[1726526508409,39.839484,131.09,131.04,14.12696403]
[1726526508907,23.776884,131.09,131.07,7.629]
[1726526513137,43.776884,131.09,131.08,7.6289]
[1726526513337,43.776884,131.09,131.02,0.2545957]
[1726526513338,16.6632,131.12,131.1,7.6272]
[1726526517418,23.776884,131.11,131.04,21.5786]
[1726526517639,23.776884,131.11,131.02,0.2545957]
[1726526517640,31.403984,131.11,131.07,7.6293]
[1726526518344,23.776884,131.11,131.07,7.6293]
[1726526520750,23.776884,131.11,131.09,7.6282]
[1726526521945,23.776884,131.11,131.1,7.6277]
[1726526521946,20.0,131.11,131.1,7.6277]
[1726526523550,43.776884,131.11,131.1,7.6277]
[1726526524027,43.776884,131.11,131.02,9.2070754]
[1726526524028,43.776884,131.11,131.09,7.6282]
[1726526524344,23.776884,131.1,131.09,7.6282]
[1726526524730,23.776884,131.1,131.08,7.6288]
[1726526530654,23.776884,131.11,131.08,7.6288]
[1726526534034,31.404484,131.11,131.07,7.6294]
[1726526534239,20.0,131.08,131.05,7.6302]
[1726526535461,20.0,131.08,131.06,7.63]
[1726526539253,23.776884,131.07,131.05,7.6305]
[1726526542581,23.776884,131.07,131.06,7.63]
[1726526550761,24.2902,131.12,131.08,7.6288]
[1726526550961,23.776884,131.1,131.08,7.6288]
[1726526551283,20.0,131.09,131.08,7.6288]
[1726526551472,43.776884,131.09,131.08,7.6288]
[1726526552573,23.776884,131.08,131.06,7.6296]
[1726526561459,23.776884,131.08,131.04,7.631]
[1726526561460,31.406084,131.08,131.04,7.631]
[1726526561779,23.776884,131.06,131.04,7.631]
[1726526575076,23.776884,131.06,131.03,7.6316]
[1726526576296,31.407084,131.06,131.02,7.8867957]
[1726526576584,23.776884,131.04,131.02,0.2545957]
[1726526578179,23.776884,131.04,131.02,7.8868957]
[1726526578473,23.776884,131.05,131.02,7.8868957]
[1726526579194,20.0,131.04,131.02,0.2545957]
[1726526579499,23.776884,131.03,131.02,0.2545957]
[1726526579876,51.408684,131.03,131.02,0.2545957]
[1726526581182,43.776884,131.03,131.02,0.2545957]
[1726526589480,51.408684,131.03,131.02,0.2545957]
[1726526592409,74.368684,131.03,131.02,0.2545957]
[1726526601705,43.776884,131.03,131.02,0.2545957]
[1726526601905,20.0,131.03,131.02,0.2545957]
[1726526603506,51.408684,131.03,131.02,0.2545957]
[1726526611336,74.368684,131.03,131.02,0.2545957]
[1726526615611,74.368684,131.03,130.98,0.2545957]
[1726526615612,43.776884,130.99,130.98,0.2545957]
[1726526622623,66.736884,130.99,130.98,0.2545957]
[1726526622826,74.370984,130.99,130.98,0.2545957]
[1726526624031,43.776884,130.99,130.98,0.2545957]
[1726526626641,51.410984,130.99,130.98,0.2545957]
[1726526626817,74.370984,130.99,130.98,0.2545957]
[1726526627637,43.776884,130.95,130.94,0.2545957]
[1726526630243,43.776884,130.95,130.94,7.8915957]
[1726526632146,23.776884,130.95,130.94,7.8915957]
[1726526632620,47.1001,131.0,130.94,0.2545957]
[1726526632816,8.74950675,131.03,130.94,0.2545957]
[1726526633020,7.6331,131.01,130.97,7.6352]
[1726526633831,30.5931,131.01,130.97,7.6352]
[1726526634555,43.776884,130.99,130.98,7.6342]
[1726526634844,43.776884,130.99,130.97,7.6351]
[1726526635025,23.776884,130.98,130.97,7.6351]
[1726526635223,23.776884,130.98,130.96,7.6358]
[1726526649940,23.776884,130.98,130.95,7.6362]
[1726526651259,23.776884,130.96,130.94,0.2545957]
[1726526651445,43.776884,130.95,130.94,0.2545957]
[1726526665274,51.413384,130.95,130.94,0.2545957]
[1726526665848,43.776884,130.95,130.94,0.2545957]
[1726526666071,43.776884,130.95,130.94,7.8915957]
[1726526666374,43.776884,130.95,130.94,0.2545957]
[1726526673972,51.413384,130.95,130.94,0.2545957]
[1726526677782,43.776884,130.95,130.94,0.2545957]
[1726526679074,23.776884,130.95,130.94,0.2545957]
[1726526679254,43.776884,130.95,130.94,0.2545957]
[1726526687857,51.413384,130.95,130.94,0.2545957]
[1726526690484,43.776884,130.95,130.94,0.2545957]
[1726526693388,39.5385,130.99,130.94,0.2545957]
[1726526693688,7.6337,131.0,130.96,7.6355]
[1726526693896,7.633,131.01,130.97,7.6352]
[1726526695092,7.6325,131.02,130.98,7.6346]
[1726526695290,7.6319,131.03,130.98,7.6346]
[1726526695500,16.8873557,131.04,130.99,7.634]
[1726526695789,16.8873557,131.04,131.0,7.6335]
[1726526696385,16.8873557,131.04,130.99,7.634]
[1726526696576,7.6321,131.03,130.99,7.634]
[1726526696993,43.776884,131.02,130.99,7.634]
[1726526700276,66.766884,131.02,130.96,15.7505]
[1726526700599,31.410484,131.0,130.96,7.6358]
[1726526700902,23.776884,131.0,130.96,7.6358]
[1726526702091,31.410584,131.0,130.96,7.6358]
[1726526703298,22.99,130.99,130.96,7.6358]
[1726526703509,31.410584,131.0,130.96,7.6358]
[1726526704000,23.776884,131.0,130.96,7.6358]
[1726526704496,31.410484,131.0,130.95,7.6363]
[1726526704699,20.0,130.99,130.94,0.2545957]
[1726526704869,23.776884,130.98,130.94,0.2545957]
[1726526706471,23.776884,130.98,130.94,7.8911957]
[1726526707803,23.776884,130.98,130.95,7.6364]
[1726526717713,31.411584,130.98,130.94,7.8913957]
[1726526717879,46.766884,130.98,130.94,0.2545957]
[1726526718075,23.776884,130.98,130.94,0.2545957]
[1726526718884,23.776884,130.98,130.95,7.6361]
[1726526724613,31.411584,130.98,130.94,7.8913957]
[1726526725207,54.401584,130.98,130.94,7.8913957]
[1726526727003,23.776884,130.98,130.95,7.6363]
[1726526728184,7.6354,130.97,130.94,0.2545957]
[1726526728408,23.776884,130.96,130.94,7.8915957]
[1726526728916,23.776884,130.97,130.94,7.8915957]
[1726526732900,23.776884,130.98,130.94,0.2545957]
[1726526733102,20.0,130.99,130.97,7.6353]
[1726526733400,20.0,131.0,130.97,7.6353]
[1726526735423,23.776884,130.99,130.97,7.6353]
[1726526737831,23.776884,130.99,130.98,7.6347]
[1726526738007,43.776884,130.99,130.98,7.6347]
[1726526741520,15.9611,131.03,130.97,14.12696403]
[1726526741724,15.9611,131.03,131.0,7.6332]
[1726526741914,7.6308,131.05,131.01,7.6329]
[1726526742520,7.6312,131.04,131.0,7.6333]
[1726526743029,20.0,131.03,131.0,7.6333]
[1726526744511,23.776884,131.02,131.0,7.6333]
[1726526747531,23.776884,131.02,130.99,7.634]
[1726526747731,31.409384,131.02,130.98,7.6346]
[1726526748319,20.0,131.01,130.98,7.6346]
[1726526748520,23.776884,131.0,130.98,7.6346]
[1726526748939,20.0,131.01,130.98,7.6346]
[1726526749308,31.410484,131.0,130.94,0.2545957]
[1726526749522,23.776884,130.98,130.94,0.2545957]
[1726526750410,23.776884,130.98,130.95,7.6362]
[1726526753412,31.411584,130.98,130.94,7.8914957]
[1726526753838,23.776884,130.96,130.94,0.2545957]
[1726526756334,20.0,130.95,130.94,0.2545957]
[1726526756521,43.776884,130.95,130.94,0.2545957]
[1726526759336,23.776884,130.95,130.94,0.2545957]
[1726526759544,43.776884,130.95,130.94,0.2545957]
[1726526760044,20.0,130.97,130.94,0.2545957]
[1726526761335,23.776884,130.96,130.94,0.2545957]
[1726526761543,6.3427,131.01,130.94,0.2545957]
[1726526761544,21.5256,131.01,130.96,7.6355]
[1726526761752,15.1829,131.01,130.95,14.12696403]
[1726526762047,7.6328,131.02,130.98,7.6346]
[1726526762829,20.0,131.01,130.98,7.6346]
[1726526763030,23.776884,131.0,130.98,7.6346]
[1726526763233,20.0,130.99,130.97,7.6351]
[1726526763424,23.776884,130.98,130.97,7.6351]
[1726526764237,23.776884,130.98,130.94,6.6140957]
[1726526764441,23.776884,130.98,130.96,7.6358]
[1726526764642,23.776884,130.98,130.94,0.2545957]
[1726526766337,23.776884,130.98,130.95,7.6364]
[1726526767771,46.766884,130.98,130.95,7.6364]
[1726526767945,23.776884,130.98,130.95,7.6364]
[1726526770626,31.411684,130.98,130.94,7.8914957]
[1726526771345,23.776884,130.98,130.94,0.2545957]
[1726526772231,31.411684,130.98,130.94,7.8914957]
[1726526774760,23.776884,130.96,130.94,0.2545957]
[1726526780444,31.412884,130.96,130.94,0.2545957]
[1726526780752,43.776884,130.95,130.94,0.2545957]
[1726526781141,51.413384,130.95,130.94,0.2545957]
[1726526783072,43.776884,130.95,130.94,0.2545957]
[1726526789072,51.413384,130.95,130.94,0.2545957]
[1726526791251,74.403384,130.95,130.94,0.2545957]
[1726526792163,130.477384,130.95,130.94,0.2545957]
[1726526792370,130.477384,130.95,130.9,0.2545957]
[1726526792371,51.415684,130.91,130.9,0.2545957]
[1726526792574,74.405684,130.91,130.9,0.2545957]
[1726526802801,20.0,130.91,130.9,0.2545957]
[1726526803074,7.6377,130.93,130.9,0.2545957]
[1726526804262,43.776884,130.92,130.9,0.2545957]
[1726526806280,20.0,130.95,130.9,0.2545957]
[1726526806753,27.6366,130.95,130.91,7.6388]
[1726526807370,27.6366,130.95,130.92,7.6381]
[1726526807371,20.0,130.95,130.92,7.6381]
[1726526807571,46.0781,130.96,130.92,7.6381]